bitfinex-derivatives/quotes_BTCF0:USTF0_20241231
["timestamp","ask_amount","ask_price","bid_price","bid_amount"]
[1735661262232,0.05254,95302.0,95301.0,0.05254]
[1735661262425,0.3608,95309.0,95296.0,0.3608]
[1735661262628,0.3608,95309.0,95308.0,0.052537]
[1735661262821,0.1414561,95316.0,95304.0,0.3608]
[1735661263026,0.1414561,95316.0,95310.0,0.052536]
[1735661263529,0.052535,95311.0,95310.0,0.052536]
[1735661264131,0.052538,95307.0,95306.0,0.21136861]
[1735661264433,0.052538,95307.0,95306.0,0.052538]
[1735661264635,0.052539,95305.0,95304.0,0.3608]
[1735661265934,0.052539,95305.0,95304.0,0.413339]
[1735661266135,0.054539,95305.0,95304.0,0.414339]
[1735661266943,0.055539,95305.0,95304.0,0.415339]
[1735661268633,0.003,95305.0,95304.0,0.415339]
[1735661269336,0.10157444,95316.0,95315.0,0.052533]
[1735661269535,0.31280716,95340.0,95315.0,0.413333]
[1735661269725,0.31280716,95340.0,95332.0,0.413324]
[1735661269930,0.31280716,95340.0,95332.0,0.774124]
[1735661270532,0.04099975,95336.0,95332.0,0.774124]
[1735661270833,0.0458,95351.0,95332.0,0.774124]
[1735661271032,0.0416456,95338.0,95332.0,0.774124]
[1735661271936,0.0458,95351.0,95332.0,0.774124]
[1735661272237,0.052513,95352.0,95348.0,0.052515]
[1735661272429,0.047,95355.0,95348.0,0.3608]
[1735661272633,0.052514,95350.0,95348.0,0.3608]
[1735661272946,0.052517,95345.0,95344.0,0.052517]
[1735661273237,0.14092205,95349.0,95348.0,0.052515]
[1735661273439,0.14092205,95349.0,95348.0,0.413315]
[1735661273638,0.1,95349.0,95348.0,0.413315]
[1735661273936,0.00157381,95360.0,95359.0,0.052509]
[1735661274232,0.00157381,95360.0,95359.0,0.413309]
[1735661275535,0.1,95365.0,95364.0,0.052506]
[1735661275746,0.0525,95377.0,95374.0,0.052501]
[1735661275940,0.04094656,95377.0,95375.0,0.0525]
[1735661276139,0.152497,95381.0,95375.0,0.0525]
[1735661276140,0.052499,95378.0,95375.0,0.0525]
[1735661276341,0.1,95381.0,95380.0,0.052497]
[1735661276938,0.00157306,95397.0,95380.0,0.052497]
[1735661277243,0.00157306,95397.0,95396.0,0.413289]
[1735661277837,0.052484,95405.0,95402.0,0.052485]
[1735661278037,0.052484,95405.0,95404.0,0.3608]
[1735661278741,0.19422652,95414.0,95404.0,0.3608]
[1735661278940,0.19422652,95414.0,95410.0,0.052481]
[1735661279134,0.052479,95413.0,95410.0,0.052481]
[1735661280036,0.052479,95413.0,95410.0,0.053481]
[1735661280343,0.14174752,95414.0,95412.0,0.05248]
[1735661281340,0.05248,95412.0,95410.0,0.001]
[1735661281641,0.05248,95412.0,95410.0,0.002]
[1735661282231,0.052484,95405.0,95404.0,0.3608]
[1735661282440,0.05248,95412.0,95404.0,0.3608]
[1735661282644,0.14174752,95414.0,95406.0,0.052483]
[1735661283144,0.14174752,95414.0,95413.0,0.3608]
[1735661283737,0.052484,95405.0,95375.0,0.3608]
[1735661283937,0.15883061,95390.0,95375.0,0.3608]
[1735661284140,0.052497,95381.0,95377.0,0.052499]
[1735661284348,0.052498,95380.0,95377.0,0.052499]
[1735661284840,0.052485,95403.0,95375.0,0.3608]
[1735661284841,0.15883061,95410.0,95375.0,0.3608]
[1735661285031,0.052486,95401.0,95392.0,0.052491]
[1735661285235,0.05249,95393.0,95392.0,0.052491]
[1735661286039,0.052491,95391.0,95390.0,0.3608]
[1735661287337,0.052499,95377.0,95376.0,0.00157274]
[1735661287537,0.05251,95358.0,95357.0,0.3608]
[1735661288736,0.0947,95376.0,95357.0,0.3638]
[1735661288937,0.052507,95362.0,95361.0,0.052508]
[1735661290333,0.03303703,95376.0,95358.0,0.052509]
[1735661290646,0.052499,95378.0,95375.0,0.0525]
[1735661290836,0.0525,95376.0,95375.0,0.0525]
[1735661291141,0.052502,95372.0,95357.0,0.3708]
[1735661291333,0.052502,95372.0,95365.0,0.3608]
[1735661291744,0.052503,95370.0,95369.0,0.052503]
[1735661292238,0.3608,95387.0,95365.0,0.3608]
[1735661292239,0.052505,95366.0,95365.0,0.3608]
[1735661292638,0.052505,95366.0,95357.0,0.3535035]
[1735661292944,0.41331,95358.0,95357.0,0.007]
[1735661294439,0.41331,95358.0,95344.0,0.052517]
[1735661294639,0.052516,95346.0,95344.0,0.052517]
[1735661295536,0.052513,95352.0,95349.0,0.052514]
[1735661295732,0.052514,95351.0,95349.0,0.052514]
[1735661296344,0.006,95358.0,95340.0,0.51963061]
[1735661296544,0.05251,95357.0,95355.0,0.052511]
[1735661296941,0.052513,95352.0,95348.0,0.3608]
[1735661297244,0.052513,95352.0,95351.0,0.052513]
[1735661297446,0.052514,95349.0,95348.0,0.3608]
[1735661298139,0.002,95351.0,95348.0,1.913315]
[1735661298335,0.002,95351.0,95350.0,0.052514]
[1735661298541,0.052512,95354.0,95353.0,0.052512]
[1735661299037,0.052511,95355.0,95348.0,0.3608]
[1735661299242,0.052513,95353.0,95352.0,0.052512]
[1735661299446,0.052514,95349.0,95348.0,0.3608]
[1735661300550,0.052514,95349.0,95339.0,0.05252]
[1735661300551,0.05252,95339.0,95338.0,0.18839847]
[1735661300738,0.41332,95339.0,95319.0,0.37355735]
[1735661300944,0.052524,95332.0,95331.0,0.18396692]
[1735661302152,0.052524,95332.0,95325.0,0.25103259]
[1735661302153,0.052527,95326.0,95325.0,0.052527]
[1735661303345,0.052527,95326.0,95320.0,1.50068]
[1735661303546,0.05253,95320.0,95319.0,0.3608]
[1735661303750,0.052534,95315.0,95314.0,0.052533]
[1735661303951,0.052532,95318.0,95311.0,0.3623738]
[1735661304142,0.052532,95318.0,95317.0,0.052532]
[1735661304539,0.21135561,95330.0,95311.0,0.3623738]
[1735661304746,0.052535,95313.0,95312.0,0.052535]
[1735661305247,0.052535,95312.0,95311.0,0.3623738]
[1735661305454,0.052535,95312.0,95311.0,0.3608]
[1735661305653,0.052541,95304.0,95303.0,0.05254]
[1735661306949,0.052536,95310.0,95309.0,0.052536]
[1735661308247,0.03251471,95312.0,95300.0,0.4608]
[1735661308248,0.05254,95305.0,95304.0,0.052539]
[1735661309446,0.05254,95305.0,95304.0,0.061539]
[1735661309643,0.3608,95336.0,95304.0,0.009]
[1735661309848,0.03315373,95334.0,95323.0,0.3608]
[1735661310064,0.3608,95349.0,95332.0,0.052524]
[1735661310353,0.052524,95332.0,95331.0,0.3608]
[1735661310653,0.052524,95332.0,95331.0,0.413324]
[1735661311850,0.053524,95332.0,95331.0,0.413324]
[1735661312461,0.053524,95332.0,95331.0,0.3608]
[1735661312651,0.054524,95332.0,95331.0,0.413324]
[1735661313753,0.054524,95332.0,95331.0,0.3608]
[1735661314563,0.08106792,95332.0,95331.0,0.3608]
[1735661315145,0.08106792,95332.0,95331.0,0.32322534]
[1735661315546,0.08106792,95332.0,95331.0,0.30152534]
[1735661318164,0.08106792,95332.0,95331.0,0.35404934]
[1735661318656,0.054524,95332.0,95331.0,0.35404934]
[1735661319955,0.002,95332.0,95331.0,0.35404934]
[1735661320555,0.001,95332.0,95331.0,0.35404934]
[1735661320751,0.052521,95337.0,95336.0,0.052522]
[1735661321157,0.07918414,95337.0,95336.0,0.052522]
[1735661321853,0.02666314,95337.0,95336.0,0.052522]
[1735661322056,0.052518,95343.0,95342.0,0.052518]
[1735661322257,0.052514,95350.0,95349.0,0.052513]
[1735661322458,0.07852099,95359.0,95358.0,0.05251]
[1735661322669,0.07852099,95359.0,95358.0,0.41331]
[1735661324267,0.02701199,95359.0,95358.0,0.41331]
[1735661324767,0.02801199,95359.0,95358.0,0.41331]
[1735661325763,0.08052099,95359.0,95358.0,0.41331]
[1735661326066,0.08052099,95359.0,95358.0,0.3608]
[1735661326659,0.002,95359.0,95358.0,0.3608]
[1735661327060,0.002,95359.0,95358.0,0.41331]
[1735661327260,0.001,95359.0,95358.0,0.41331]
[1735661327461,0.006,95359.0,95358.0,0.41331]
[1735661327868,0.001,95359.0,95358.0,0.41331]
[1735661328063,0.002,95359.0,95358.0,0.41331]
[1735661328253,0.15883061,95400.0,95358.0,0.41331]
[1735661328459,0.15883061,95400.0,95375.0,0.0525]
[1735661328460,0.0495,95392.0,95375.0,0.0525]
[1735661328765,0.15883061,95390.0,95388.0,0.3608]
[1735661328964,0.0495,95392.0,95388.0,0.3608]
[1735661329168,0.052492,95389.0,95388.0,0.3608]
[1735661330055,0.052492,95389.0,95388.0,0.413293]
[1735661330660,0.02631128,95393.0,95391.0,0.052491]
[1735661330858,0.18302757,95398.0,95392.0,0.4132]
[1735661331054,0.052488,95397.0,95392.0,0.4132]
[1735661331253,0.052488,95397.0,95395.0,0.052489]
[1735661331861,0.052485,95404.0,95402.0,0.052485]
[1735661332056,0.052485,95404.0,95403.0,0.3608]
[1735661332260,0.052481,95410.0,95408.0,0.052482]
[1735661332463,0.052481,95410.0,95408.0,0.413282]
[1735661332674,0.08078893,95409.0,95408.0,0.3608]
[1735661332867,0.05405412,95409.0,95408.0,0.3608]
[1735661333172,0.05405412,95409.0,95408.0,0.413282]
[1735661333463,0.00157312,95409.0,95408.0,0.3608]
[1735661333663,0.00157312,95409.0,95408.0,0.413282]
[1735661333865,0.1523,95448.0,95408.0,0.413282]
[1735661334163,0.052462,95444.0,95442.0,0.3608]
[1735661335469,0.07909429,95444.0,95442.0,0.3618]
[1735661336058,0.02663229,95444.0,95442.0,0.414263]
[1735661336258,0.052456,95456.0,95450.0,0.052459]
[1735661336463,0.052456,95456.0,95455.0,0.3608]
[1735661337671,0.056456,95456.0,95455.0,0.3618]
[1735661337868,0.056456,95456.0,95455.0,0.3628]
[1735661339565,0.052456,95456.0,95455.0,0.3618]
[1735661339767,0.056456,95456.0,95455.0,0.3628]
[1735661340674,0.056456,95456.0,95455.0,0.3618]
[1735661341469,0.004,95456.0,95455.0,0.414256]
[1735661342568,0.00157236,95468.0,95455.0,0.44711074]
[1735661342769,0.00157236,95468.0,95467.0,0.41325]
[1735661343574,0.00157236,95468.0,95467.0,0.3608]
[1735661343766,0.00557236,95468.0,95467.0,0.3608]
[1735661344370,0.00157236,95468.0,95467.0,0.3618]
[1735661344674,0.00157236,95468.0,95444.0,0.100662]
[1735661344675,0.05777236,95468.0,95443.0,0.3608]
[1735661344982,0.05777236,95468.0,95417.0,0.052477]
[1735661344983,0.052462,95444.0,95417.0,0.052477]
[1735661345182,0.052474,95423.0,95417.0,0.052477]
[1735661345479,0.052474,95423.0,95413.0,0.3608]
[1735661345676,0.052474,95423.0,95411.0,0.0482]
[1735661345974,0.052474,95423.0,95411.0,0.10068]
[1735661346378,0.052474,95423.0,95411.0,0.0482]
[1735661346678,0.052474,95423.0,95421.0,0.00457204]
[1735661346862,0.08506429,95423.0,95421.0,0.00457204]
[1735661347266,0.052474,95422.0,95421.0,0.00457204]
[1735661347666,0.052474,95422.0,95421.0,0.00557204]
[1735661348278,0.052474,95422.0,95421.0,0.00457204]
[1735661348575,0.052474,95422.0,95421.0,0.00557204]
[1735661348973,0.052474,95422.0,95421.0,0.00257204]
[1735661349169,0.052474,95422.0,95421.0,0.00557204]
[1735661350180,0.054474,95422.0,95421.0,0.00257204]
[1735661350676,0.052474,95422.0,95421.0,0.00257204]
[1735661350878,0.054474,95422.0,95421.0,0.00257204]
[1735661351275,0.055474,95422.0,95421.0,0.00157204]
[1735661351782,0.003,95422.0,95421.0,0.05404704]
[1735661352185,0.001,95422.0,95421.0,0.05404704]
[1735661352380,0.002,95422.0,95421.0,0.052475]
[1735661353483,0.001,95422.0,95421.0,0.052475]
[1735661353781,0.002,95422.0,95421.0,0.052475]
[1735661354175,0.001,95422.0,95421.0,0.052475]
[1735661354385,0.002,95422.0,95421.0,0.052475]
[1735661354882,0.002,95422.0,95421.0,1.552475]
[1735661355076,0.052471,95429.0,95421.0,1.5]
[1735661355386,0.001,95422.0,95421.0,1.552475]
[1735661355783,0.152469,95432.0,95431.0,0.052469]
[1735661356186,0.1,95432.0,95431.0,0.052469]
[1735661357078,0.101,95432.0,95431.0,0.052469]
[1735661358790,0.154469,95432.0,95431.0,0.052469]
[1735661359086,0.102,95432.0,95431.0,0.052469]
[1735661359986,0.052461,95446.0,95445.0,0.052462]
[1735661360182,0.052458,95451.0,95450.0,0.052458]
[1735661361190,0.053462,95446.0,95445.0,0.052462]
[1735661361388,0.001,95446.0,95445.0,0.052462]
[1735661361688,0.052461,95446.0,95445.0,0.052462]
[1735661362384,0.052461,95446.0,95445.0,0.053462]
[1735661363281,0.052461,95446.0,95445.0,0.001]
[1735661364093,0.052463,95442.0,95441.0,0.25103259]
[1735661364295,0.052467,95435.0,95434.0,0.052468]
[1735661366485,0.05247,95430.0,95429.0,0.05247]
[1735661366693,0.3608,95441.0,95425.0,0.25103259]
[1735661366888,0.052472,95426.0,95425.0,0.25103259]
[1735661367391,0.052472,95426.0,95425.0,0.30350559]
[1735661367991,0.052472,95426.0,95425.0,0.052473]
[1735661368888,0.15883061,95460.0,95424.0,0.3608]
[1735661368889,0.3608,95467.0,95424.0,0.3608]
[1735661369084,0.3608,95458.0,95439.0,0.51963061]
[1735661369290,0.28962985,95452.0,95451.0,0.052458]
[1735661370100,0.34208785,95452.0,95451.0,0.052458]
[1735661370395,0.1,95452.0,95451.0,0.052458]
[1735661370790,0.18805783,95471.0,95451.0,0.413258]
[1735661370987,0.18805783,95471.0,95470.0,0.052448]
[1735661371799,0.1,95472.0,95464.0,0.1094]
[1735661371800,0.1,95472.0,95471.0,0.052447]
[1735661372794,0.36237139,95491.0,95490.0,0.052437]
[1735661373700,0.44814057,95491.0,95490.0,0.052437]
[1735661373894,0.39570457,95491.0,95490.0,0.052437]
[1735661374398,0.41323,95503.0,95490.0,0.413237]
[1735661374592,0.41387,95503.0,95490.0,0.414237]
[1735661374904,0.03250083,95499.0,95490.0,0.44763872]
[1735661375102,0.00064,95503.0,95490.0,0.44763872]
[1735661375395,0.18805783,95508.0,95490.0,0.44763872]
[1735661375600,0.052427,95508.0,95491.0,0.0495]
[1735661375805,0.2142,95516.0,95491.0,0.0495]
[1735661375993,0.052429,95505.0,95504.0,0.3608]
[1735661376299,0.052429,95505.0,95500.0,0.51963061]
[1735661376801,0.24756256,95516.0,95500.0,0.51963061]
[1735661376998,0.05243,95502.0,95500.0,0.21126161]
[1735661377502,0.052428,95508.0,95506.0,0.052428]
[1735661379597,0.052428,95508.0,95507.0,0.3608]
[1735661379799,0.052424,95514.0,95511.0,0.052425]
[1735661380499,0.052424,95514.0,95512.0,0.052425]
[1735661381289,0.24756256,95516.0,95515.0,0.052423]
[1735661381489,0.03336256,95516.0,95515.0,0.052423]
[1735661381700,0.052421,95520.0,95519.0,0.052421]
[1735661382393,0.052414,95532.0,95527.0,0.052417]
[1735661382593,0.46140001,95533.0,95527.0,0.052417]
[1735661382797,0.10060001,95533.0,95527.0,0.052417]
[1735661382994,0.1,95533.0,95527.0,0.052417]
[1735661383391,0.02880557,95531.0,95527.0,0.052417]
[1735661383802,0.02880557,95531.0,95527.0,0.053417]
[1735661383998,0.1,95533.0,95527.0,0.053417]
[1735661384205,0.1,95533.0,95527.0,0.054417]
[1735661385098,0.1,95533.0,95532.0,0.413214]
[1735661385804,0.1,95533.0,95532.0,0.052414]
[1735661386196,0.1,95533.0,95527.0,0.002]
[1735661386402,0.052416,95528.0,95527.0,0.001]
[1735661386704,0.052416,95528.0,95521.0,0.3608]
[1735661386705,0.1,95533.0,95523.0,0.052419]
[1735661387005,0.05242,95521.0,95516.0,0.054]
[1735661387499,0.1,95533.0,95519.0,0.3608]
[1735661387700,0.052416,95528.0,95527.0,0.054416]
[1735661388107,0.052416,95528.0,95527.0,0.053416]
[1735661389306,0.1,95533.0,95532.0,0.052414]
[1735661390610,0.1,95533.0,95532.0,0.053414]
[1735661390811,0.1,95533.0,95532.0,0.054414]
[1735661393611,0.1,95533.0,95532.0,0.053414]
[1735661394908,0.0015704,95560.0,95532.0,0.001]
[1735661395215,0.02841352,95555.0,95552.0,0.052403]
[1735661396108,0.052402,95554.0,95552.0,0.052403]
[1735661396311,0.152402,95553.0,95552.0,0.052403]
[1735661396617,0.152402,95553.0,95552.0,0.0522919]
[1735661397218,0.152402,95553.0,95552.0,0.0532919]
[1735661397619,0.152402,95553.0,95552.0,0.0542919]
[1735661398122,0.152402,95553.0,95552.0,0.002]
[1735661399517,0.152402,95553.0,95552.0,0.001]
[1735661399717,0.1,95553.0,95552.0,0.001]
[1735661399912,0.152402,95553.0,95552.0,0.001]
[1735661401315,0.1,95553.0,95552.0,0.053403]
[1735661405407,0.152402,95553.0,95552.0,0.053403]
[1735661406021,0.1,95553.0,95552.0,0.053403]
[1735661406517,0.052397,95564.0,95563.0,0.052394]
[1735661406720,0.052397,95564.0,95563.0,0.413194]
[1735661407323,0.02494703,95572.0,95563.0,0.413194]
[1735661407617,0.05239,95577.0,95572.0,0.052392]
[1735661407816,0.12619911,95573.0,95572.0,0.413192]
[1735661408320,0.10156996,95573.0,95572.0,0.413192]
[1735661410323,0.10156996,95573.0,95572.0,0.415192]
[1735661412531,0.10156996,95573.0,95572.0,0.414192]
[1735661412912,0.10156996,95573.0,95572.0,0.413192]
[1735661413513,0.10156996,95573.0,95562.0,0.052397]
[1735661413715,0.0524,95557.0,95556.0,0.4132]
[1735661413918,0.0524,95557.0,95556.0,0.3608]
[1735661414117,0.10156996,95573.0,95556.0,0.3608]
[1735661414319,0.10156996,95573.0,95564.0,0.3608]
[1735661414628,0.10156996,95573.0,95572.0,0.413192]
[1735661416312,0.10156996,95573.0,95572.0,0.43732253]
[1735661420523,0.10156996,95573.0,95572.0,0.413192]
[1735661422834,0.152391,95573.0,95572.0,0.3608]
[1735661423035,0.152391,95573.0,95572.0,0.413192]
[1735661424039,0.17657024,95573.0,95572.0,0.3608]
[1735661424740,0.17657024,95573.0,95572.0,0.414192]
[1735661425036,0.17657024,95573.0,95572.0,0.053392]
[1735661428029,0.12417924,95573.0,95572.0,0.053392]
[1735661428229,0.17657024,95573.0,95572.0,0.053392]
[1735661429131,0.33299112,95573.0,95572.0,0.053392]
[1735661430232,0.33299112,95573.0,95572.0,0.052392]
[1735661430539,0.17657024,95573.0,95572.0,0.052392]
[1735661431030,0.17657024,95573.0,95572.0,0.053392]
[1735661431232,0.17657024,95573.0,95572.0,0.001]
[1735661431724,0.23367024,95573.0,95572.0,0.001]
[1735661433033,0.32836378,95573.0,95572.0,0.001]
[1735661433731,0.32836378,95573.0,95562.0,0.3608]
[1735661433732,0.052397,95563.0,95562.0,0.3608]
[1735661434339,0.3608,95569.0,95553.0,0.3608]
[1735661434541,0.052402,95555.0,95554.0,0.052401]
[1735661435239,0.14709554,95555.0,95554.0,0.052401]
[1735661436542,0.052402,95555.0,95554.0,0.052401]
[1735661437241,0.052398,95564.0,95563.0,0.052396]
[1735661437826,0.27179881,95564.0,95563.0,0.052396]
[1735661438735,0.29691243,95564.0,95563.0,0.052396]
[1735661438935,0.21940081,95564.0,95563.0,0.052396]
[1735661439433,0.09456296,95564.0,95563.0,0.052396]
[1735661439638,0.09456296,95564.0,95563.0,0.053396]
[1735661440040,0.09456296,95564.0,95563.0,0.052396]
[1735661442938,0.052393,95570.0,95569.0,0.052394]
[1735661443138,0.052393,95570.0,95569.0,0.413194]
[1735661443344,0.052393,95570.0,95569.0,0.052394]
[1735661443639,0.052398,95565.0,95564.0,0.052395]
[1735661444941,0.052398,95561.0,95560.0,0.3608]
[1735661445339,0.1178,95564.0,95555.0,0.052401]
[1735661445640,0.052401,95556.0,95555.0,0.052401]
[1735661446239,0.052403,95551.0,95550.0,0.05397279]
[1735661446431,0.052403,95551.0,95550.0,0.00156979]
[1735661447638,0.052403,95551.0,95550.0,0.05397379]
[1735661447844,0.14700264,95551.0,95550.0,0.05397379]
[1735661449245,0.052404,95550.0,95549.0,0.3608]
[1735661450149,0.052406,95546.0,95545.0,0.052407]
[1735661451441,0.14700564,95546.0,95545.0,0.052407]
[1735661451749,0.09459964,95546.0,95545.0,0.052407]
[1735661452051,0.21940081,95554.0,95545.0,0.001]
[1735661452243,0.21940081,95554.0,95553.0,0.413202]
[1735661452443,0.12211432,95573.0,95558.0,0.0524]
[1735661452647,0.3019924,95569.0,95568.0,0.052394]
[1735661454346,0.052394,95569.0,95568.0,0.052394]
[1735661458444,0.052394,95569.0,95566.0,0.3608]
[1735661458752,0.052396,95564.0,95563.0,0.052397]
[1735661459950,0.052394,95569.0,95568.0,0.052392]
[1735661460544,0.3608,95572.0,95558.0,0.3608]
[1735661460751,0.052399,95559.0,95558.0,0.413199]
[1735661461342,0.12211432,95573.0,95558.0,0.413199]
[1735661461343,0.12211432,95573.0,95558.0,0.3608]
[1735661461546,0.052395,95567.0,95566.0,0.052395]
[1735661461748,0.052395,95567.0,95566.0,0.413195]
[1735661463743,0.052395,95567.0,95566.0,0.052395]
[1735661465050,0.052395,95567.0,95566.0,0.053395]
[1735661465441,0.052395,95567.0,95566.0,0.001]
[1735661466444,0.1528744,95567.0,95566.0,0.001]
[1735661466659,0.052399,95559.0,95558.0,0.3608]
[1735661467654,0.052399,95559.0,95546.0,0.3608]
[1735661467859,0.052406,95551.0,95550.0,0.052404]
[1735661472958,0.052406,95547.0,95546.0,0.413206]
[1735661474252,0.052406,95547.0,95546.0,0.416206]
[1735661476263,0.0524,95557.0,95556.0,0.052401]
[1735661477161,0.21966884,95558.0,95557.0,0.0524]
[1735661478162,0.052399,95559.0,95554.0,0.3608]
[1735661478163,0.052399,95559.0,95558.0,0.0524]
[1735661478763,0.052401,95555.0,95554.0,0.413202]
[1735661480056,0.052401,95555.0,95554.0,0.3608]
[1735661480257,0.052406,95546.0,95545.0,0.413207]
[1735661481657,0.052406,95546.0,95545.0,0.416207]
[1735661482264,0.052406,95546.0,95545.0,0.417207]
[1735661485667,0.21966884,95558.0,95545.0,0.3648]
[1735661485881,0.21966884,95558.0,95557.0,0.0524]
[1735661486465,0.27206884,95558.0,95557.0,0.0524]
[1735661487166,0.0524,95558.0,95557.0,0.0524]
[1735661487466,0.01924915,95566.0,95557.0,0.0524]
[1735661487675,0.052397,95563.0,95562.0,0.052396]
[1735661490577,0.053397,95563.0,95562.0,0.052396]
[1735661491276,0.001,95563.0,95562.0,0.052396]
[1735661492174,0.001,95563.0,95556.0,0.3608]
[1735661492373,0.001,95563.0,95562.0,0.052397]
[1735661493387,0.053397,95563.0,95562.0,0.052397]
[1735661493570,0.001,95563.0,95562.0,0.052397]
[1735661493769,0.052395,95567.0,95556.0,0.3608]
[1735661494077,0.001,95563.0,95562.0,0.052397]
[1735661495180,0.001,95567.0,95566.0,0.052395]
[1735661495473,0.052395,95567.0,95566.0,0.413195]
[1735661497880,0.053395,95567.0,95566.0,0.414195]
[1735661498280,0.001,95567.0,95566.0,0.414195]
[1735661501577,0.001,95567.0,95566.0,0.413195]
[1735661502179,0.0588,95569.0,95568.0,0.052394]
[1735661503785,0.111194,95569.0,95568.0,0.052394]
[1735661503982,0.052395,95567.0,95566.0,0.3608]
[1735661504583,0.052395,95567.0,95566.0,0.413195]
[1735661505478,0.053395,95567.0,95566.0,0.413195]
[1735661506382,0.053395,95567.0,95566.0,0.052395]
[1735661507481,0.001,95567.0,95566.0,0.052395]
[1735661508984,0.0588,95569.0,95565.0,0.3608]
[1735661509190,0.001,95567.0,95566.0,0.052395]
[1735661510990,0.0598,95569.0,95568.0,0.052394]
[1735661511487,0.0588,95569.0,95568.0,0.052394]
[1735661512282,0.0598,95569.0,95568.0,0.053394]
[1735661513187,0.112194,95569.0,95568.0,0.053394]
[1735661513584,0.112194,95569.0,95547.0,0.18814591]
[1735661513792,0.0524,95557.0,95547.0,0.18814591]
[1735661514390,0.0524,95557.0,95547.0,0.29346544]
[1735661514587,0.0524,95557.0,95547.0,0.34587044]
[1735661514788,0.0524,95557.0,95547.0,0.15772453]
[1735661514988,0.0534,95557.0,95547.0,0.15772453]
[1735661516191,0.001,95557.0,95547.0,0.15772453]
[1735661517079,0.001,95557.0,95556.0,1.913201]
[1735661517394,0.001,95557.0,95556.0,0.413201]
[1735661521589,0.001,95557.0,95556.0,1.913201]
[1735661521994,0.001,95557.0,95556.0,0.413201]
[1735661527902,0.0534,95557.0,95556.0,0.413201]
[1735661528789,0.001,95557.0,95556.0,0.413201]
[1735661529693,0.0592,95557.0,95556.0,0.413201]
[1735661530103,0.001,95557.0,95556.0,0.413201]
[1735661530607,0.001,95557.0,95556.0,0.774001]
[1735661530911,0.001,95557.0,95556.0,2.274001]
[1735661534410,0.001,95557.0,95556.0,0.774001]
[1735661535407,0.1,95573.0,95572.0,0.052392]
[1735661537405,0.101,95573.0,95572.0,0.053392]
[1735661548005,0.101,95573.0,95572.0,0.001]
[1735661548208,0.153391,95573.0,95572.0,0.001]
[1735661548413,0.153391,95573.0,95572.0,0.053392]
[1735661550312,0.25436529,95573.0,95572.0,0.053392]
[1735661551612,0.153391,95573.0,95572.0,0.053392]
[1735661552016,0.153391,95573.0,95572.0,0.001]
[1735661554020,0.20208375,95573.0,95561.0,0.052398]
[1735661554321,0.052397,95562.0,95561.0,0.052398]
[1735661555615,0.053397,95562.0,95561.0,0.052398]
[1735661557216,0.001,95562.0,95561.0,0.052398]
[1735661557620,0.1020597,95562.0,95561.0,0.052398]
[1735661558521,0.001,95562.0,95561.0,0.052398]
[1735661559122,0.001,95562.0,95561.0,1.552398]
[1735661560221,0.21947393,95577.0,95572.0,0.052392]
[1735661560411,0.21947393,95577.0,95572.0,0.413192]
[1735661561013,0.01627173,95585.0,95572.0,0.413192]
[1735661562120,0.102,95573.0,95572.0,0.414192]
[1735661563024,0.102,95573.0,95572.0,0.4290334]
[1735661577325,0.102,95573.0,95572.0,0.414192]
[1735661581340,0.102,95573.0,95572.0,1.914192]
[1735661581838,0.102,95573.0,95572.0,0.414192]
[1735661582228,0.21947393,95599.0,95592.0,0.052381]
[1735661582432,0.25103954,95608.0,95599.0,0.052377]
[1735661582930,0.25103954,95608.0,95607.0,0.052373]
[1735661583136,0.25103954,95608.0,95607.0,0.413173]
[1735661583453,0.25103954,95612.0,95607.0,0.413173]
[1735661583630,0.25103954,95612.0,95611.0,0.052371]
[1735661584937,0.1,95613.0,95612.0,0.05237]
[1735661586137,0.1,95613.0,95612.0,0.05337]
[1735661586530,0.1,95613.0,95612.0,0.05437]
[1735661587233,0.1,95613.0,95612.0,0.05337]
[1735661587433,0.1,95613.0,95612.0,0.05437]
[1735661588439,0.1,95613.0,95612.0,0.05337]
[1735661588640,0.1,95613.0,95612.0,0.05437]
[1735661589030,0.1,95613.0,95612.0,0.05337]
[1735661589230,0.1,95613.0,95612.0,0.05437]
[1735661589530,0.1,95613.0,95612.0,0.05337]
[1735661591325,0.1089692,95624.0,95623.0,0.052364]
[1735661591529,0.1089692,95624.0,95623.0,0.413164]
[1735661592142,0.0561692,95624.0,95623.0,0.413164]
[1735661592627,0.0015692,95624.0,95623.0,0.413164]
[1735661592839,0.0015692,95624.0,95623.0,0.414164]
[1735661593138,0.0015692,95624.0,95623.0,0.415164]
[1735661594738,0.0523,95633.0,95632.0,0.052359]
[1735661594948,0.0523,95633.0,95632.0,0.413159]
[1735661595837,0.1,95634.0,95633.0,0.052359]
[1735661597031,0.1,95634.0,95633.0,0.053359]
[1735661598035,0.1,95634.0,95633.0,0.054359]
[1735661598429,0.1,95634.0,95633.0,0.053359]
[1735661598748,0.1,95634.0,95633.0,0.054359]
[1735661599336,0.1,95634.0,95624.0,0.3608]
[1735661599541,0.052361,95629.0,95628.0,0.05236]
[1735661600737,0.052361,95629.0,95623.0,0.10531953]
[1735661600738,0.3608,95632.0,95631.0,0.05236]
[1735661601245,0.1089,95633.0,95632.0,0.052359]
[1735661602530,0.1626,95633.0,95632.0,0.052359]
[1735661603040,0.1636,95633.0,95632.0,0.053359]
[1735661603742,0.1636,95633.0,95610.0,0.46611953]
[1735661604042,0.21596,95633.0,95632.0,0.052359]
[1735661604442,0.21796,95633.0,95632.0,0.053359]
[1735661605143,0.21696,95633.0,95632.0,0.053359]